bitfinex-derivatives/quotes_ETHF0:USTF0_20250404
["timestamp","ask_amount","ask_price","bid_price","bid_amount"]
[1743786578267,2.63299,1797.6,1797.5,1.11319]
[1743786578762,1.1593,1797.7,1797.4,3.2078]
[1743786578763,1.11319,1797.5,1797.4,3.2078]
[1743786578953,1.11325,1797.4,1797.3,1.1227]
[1743786579155,2.57325,1797.4,1797.3,1.1227]
[1743786579660,1.46,1797.4,1797.1,4.2831]
[1743786579963,1.11343,1797.2,1797.1,1.11342]
[1743786580163,1.11343,1797.1,1797.0,42.98576]
[1743786580357,1.11343,1797.1,1797.0,41.8723]
[1743786581262,1.11343,1797.1,1797.0,42.9858]
[1743786581464,2.63623,1797.1,1797.0,41.8723]
[1743786581666,2.63623,1797.1,1797.0,42.9858]
[1743786581961,5.4246,1797.4,1797.2,1.11335]
[1743786582166,1.11343,1797.1,1797.0,41.8723]
[1743786582668,1.11343,1797.1,1797.0,40.8]
[1743786582966,5.37843,1797.1,1797.0,40.8]
[1743786583561,5.37843,1797.1,1797.0,41.9135]
[1743786583764,5.37843,1797.1,1797.0,40.8]
[1743786583964,5.37846,1797.1,1797.0,1.1135]
[1743786584164,1.11339,1797.2,1797.1,1.11343]
[1743786584365,1.11339,1797.2,1797.1,41.91343]
[1743786585063,1.11339,1797.2,1797.1,40.8]
[1743786585571,2.62289,1797.2,1797.1,40.8]
[1743786585764,1.11328,1797.4,1797.1,40.8]
[1743786585970,1.11328,1797.4,1797.3,1.11327]
[1743786586266,1.11326,1797.4,1797.3,1.11326]
[1743786587072,1.11331,1797.3,1797.2,5.444]
[1743786587570,4.265,1797.6,1797.2,4.3307]
[1743786587771,1.11321,1797.5,1797.4,1.11319]
[1743786587968,1.1133,1797.4,1797.3,1.11328]
[1743786588170,1.11325,1797.5,1797.4,1.11323]
[1743786588366,4.27333912,1797.8,1797.4,3.2078]
[1743786588566,2.79084912,1797.8,1797.4,3.2078]
[1743786588765,1.11309,1797.7,1797.6,1.11307]
[1743786588969,0.00833912,1797.8,1797.5,3.2078]
[1743786589175,1.11312,1797.7,1797.6,1.11307]
[1743786589681,1.11312,1797.7,1797.5,3.2078]
[1743786589682,0.00833912,1797.8,1797.7,1.11306]
[1743786589971,1.12133912,1797.8,1797.7,3.2078]
[1743786590373,1.12133912,1797.8,1797.7,4.32086]
[1743786590573,1.12133912,1797.8,1797.7,3.2078]
[1743786590774,1.11312,1797.6,1797.5,3.2078]
[1743786591466,1.11312,1797.6,1797.5,4.7106]
[1743786591679,1.11312,1797.6,1797.5,5.82379]
[1743786592173,1.48723912,1797.8,1797.5,4.7106]
[1743786592374,1.11312,1797.6,1797.5,4.7106]
[1743786593071,1.11312,1797.6,1797.5,1.5028]
[1743786593072,2.64272,1797.6,1797.5,1.5028]
[1743786593266,1.11325,1797.4,1797.3,3.2078]
[1743786593470,1.11325,1797.4,1797.3,4.7479]
[1743786593671,1.11325,1797.4,1797.3,5.86121]
[1743786593877,1.11325,1797.4,1797.3,4.7479]
[1743786594075,1.11325,1797.4,1797.3,5.86121]
[1743786594278,1.11325,1797.4,1797.3,5.86116]
[1743786594978,1.11325,1797.4,1797.3,4.7479]
[1743786595677,1.11337,1797.2,1797.1,40.8]
[1743786595874,1.4637,1797.3,1797.0,3.2078]
[1743786596080,2.78317,1797.4,1797.0,3.2078]
[1743786596081,2.57713,1797.1,1797.0,4.3213]
[1743786596572,1.4637,1797.1,1796.8,4.6855]
[1743786596780,1.11356,1796.9,1796.8,1.4777]
[1743786596975,1.11376,1796.6,1796.5,1.11378]
[1743786597179,1.11376,1796.6,1796.5,45.12158]
[1743786597381,1.11374,1796.6,1796.5,45.12158]
[1743786597683,1.11374,1796.6,1796.5,41.91381]
[1743786597977,1.11374,1796.6,1796.5,44.0078]
[1743786598178,1.11374,1796.6,1796.5,40.8]
[1743786598386,2.57744,1796.6,1796.5,40.8]
[1743786599274,2.57744,1796.6,1796.5,45.5002]
[1743786599475,2.57744,1796.6,1796.5,40.8]
[1743786600278,6.84044,1796.6,1796.5,40.8]
[1743786600582,1.11387,1796.4,1796.3,3.2078]
[1743786600778,1.11399,1796.2,1796.1,1.4924]
[1743786600978,1.11399,1796.2,1796.1,40.8]
[1743786601374,2.59299,1796.2,1796.1,40.8]
[1743786601578,2.59299,1796.2,1796.1,44.0078]
[1743786601785,1.11399,1796.2,1796.1,40.8]
[1743786603978,5.99256,1796.4,1796.2,1.11397]
[1743786603979,1.11391,1796.4,1796.2,1.11397]
[1743786604174,1.11391,1796.4,1796.3,3.2078]
[1743786604379,1.11389,1796.4,1796.2,2.50627]
[1743786604579,1.11389,1796.4,1796.3,3.2078]
[1743786604880,1.4401,1796.6,1796.3,4.3217]
[1743786605083,1.11383,1796.5,1796.4,1.4716]
[1743786606483,2.78461,1796.5,1796.1,41.9125]
[1743786606683,1.11399,1796.2,1796.1,40.8]
[1743786607691,1.11405,1796.1,1796.0,1.1536]
[1743786607988,2.54805,1796.1,1796.0,1.1536]
[1743786608288,2.54805,1796.1,1796.0,41.9536]
[1743786608783,2.54805,1796.1,1796.0,40.8]
[1743786608981,1.11405,1796.1,1796.0,40.8]
[1743786609178,5.3843,1796.4,1796.2,1.11399]
[1743786609379,5.3843,1796.4,1796.3,1.5116]
[1743786609380,6.49817,1796.4,1796.3,1.5116]
[1743786609579,2.78534,1796.0,1795.3,3.2078]
[1743786609785,5.696,1795.9,1795.5,3.2078]
[1743786609988,1.11428,1795.8,1795.7,3.2078]
[1743786610187,1.11418,1795.9,1795.8,1.5116]
[1743786610384,1.11418,1795.9,1795.8,2.5995]
[1743786610890,1.11416,1796.0,1795.8,3.71374]
[1743786611085,1.11424,1795.8,1795.7,3.2078]
[1743786611277,2.78516,1796.1,1795.7,45.1221]
[1743786611586,1.11418,1795.9,1795.8,1.4954]
[1743786612190,1.11424,1795.8,1795.7,40.8]
[1743786612385,2.54594,1795.8,1795.7,40.8]
[1743786613279,2.78516,1796.1,1795.7,42.2954]
[1743786613589,1.11424,1795.8,1795.7,42.2954]
[1743786613790,1.11424,1795.8,1795.7,40.8]
[1743786614594,2.54834,1795.8,1795.7,40.8]
[1743786615085,6.81034,1795.8,1795.7,40.8]
[1743786615493,1.11449,1795.4,1795.3,1.0805]
[1743786615694,1.11449,1795.4,1795.3,1.4824]
[1743786615890,2.55691912,1795.5,1795.3,2.59695]
[1743786616193,2.55691912,1795.5,1795.4,40.8]
[1743786616389,2.55691912,1795.5,1795.4,42.2824]
[1743786616590,2.55691912,1795.5,1795.4,40.8]
[1743786618988,1.12281912,1795.5,1795.4,42.2266]
[1743786619496,1.12281912,1795.5,1795.4,43.34109]
[1743786619984,0.00833912,1795.5,1795.4,49.04889]
[1743786620489,1.11428,1795.8,1795.7,1.1143]
[1743786621188,1.11428,1795.8,1795.7,1.468]
[1743786621594,1.11428,1795.8,1795.7,2.5823]
[1743786622491,1.11428,1795.8,1795.7,1.468]
[1743786622994,1.11436,1795.6,1795.5,1.1533]
[1743786623193,1.11436,1795.6,1795.5,2.6876]
[1743786623391,1.11436,1795.6,1795.5,1.5343]
[1743786624296,1.11443,1795.5,1795.4,41.9322]
[1743786625599,1.11443,1795.5,1795.4,40.8]
[1743786626101,2.55093,1795.5,1795.4,40.8]
[1743786628292,2.55093,1795.5,1795.3,1.54263912]
[1743786628293,1.11449,1795.4,1795.3,0.00833912]
[1743786628499,1.11449,1795.4,1795.3,1.49863912]
[1743786628798,1.11449,1795.4,1795.3,40.80833912]
[1743786629006,2.26649,1795.4,1795.3,40.80833912]
[1743786629403,2.26649,1795.4,1795.3,0.00833912]
[1743786629904,2.26649,1795.4,1795.3,40.80833912]
[1743786630105,3.76329,1795.4,1795.3,40.80833912]
[1743786631900,2.61129,1795.4,1795.3,40.80833912]
[1743786633206,1.11449,1795.4,1795.3,41.92288912]
[1743786633505,1.4813,1795.8,1795.3,43.30833912]
[1743786633708,1.11424,1795.8,1795.7,4.32205]
[1743786634006,1.11443,1795.5,1795.4,4.6003]
[1743786634212,1.11443,1795.5,1795.4,4.32229]
[1743786634397,1.11443,1795.5,1795.4,45.12227]
[1743786635313,1.11441,1795.6,1795.5,1.11438]
[1743786635506,1.11441,1795.6,1795.5,3.33418]
[1743786635807,1.11441,1795.6,1795.5,3.33423]
[1743786636003,1.11441,1795.6,1795.5,44.13423]
[1743786636214,1.11427,1795.8,1795.7,1.1143]
[1743786636402,1.12255912,1795.9,1795.8,1.11424]
[1743786637407,0.00833912,1795.9,1795.8,1.11424]
[1743786638306,0.00833912,1795.9,1795.8,40.8]
[1743786638307,1.12251912,1795.9,1795.8,40.8]
[1743786638503,1.11424,1795.8,1795.7,3.2078]
[1743786638704,1.11429,1795.8,1795.6,3.2078]
[1743786638908,1.1143,1795.7,1795.6,3.2078]
[1743786639108,1.1143,1795.7,1795.6,45.12216]
[1743786639309,1.11429,1795.8,1795.7,1.11425]
[1743786639510,1.1143,1795.7,1795.6,45.12211]
[1743786639811,1.11428,1795.8,1795.7,1.11424]
[1743786640306,1.12255912,1795.9,1795.8,1.11424]
[1743786640516,1.12251912,1795.9,1795.8,4.32204]
[1743786641011,0.00833912,1795.9,1795.8,4.32204]
[1743786641212,0.00833912,1795.9,1795.8,6.82204]
[1743786642115,0.00833912,1795.9,1795.8,11.08104]
[1743786642809,1.12251912,1795.9,1795.8,11.08104]
[1743786643012,0.00833912,1795.9,1795.6,3.2078]
[1743786643203,1.11427,1795.8,1795.7,1.11424]
[1743786643614,1.11427,1795.8,1795.7,41.91424]
[1743786643816,1.12256912,1795.9,1795.8,1.11424]
[1743786644018,0.00833912,1795.9,1795.8,4.32204]
[1743786644517,0.00833912,1795.9,1795.8,8.58104]
[1743786644821,0.00833912,1795.9,1795.8,11.08104]
[1743786645319,0.00833912,1795.9,1795.8,51.88104]
[1743786645518,0.00833912,1795.9,1795.8,49.38104]
[1743786645519,1.12251912,1795.9,1795.8,49.38104]
[1743786645716,0.00833912,1795.9,1795.8,49.38104]
[1743786645917,1.12251912,1795.9,1795.8,41.91424]
[1743786646214,1.12251912,1795.9,1795.8,44.0078]
[1743786646915,2.78575,1795.8,1795.6,3.2078]
[1743786647111,1.1143,1795.7,1795.6,3.2078]
[1743786647307,2.6487,1795.7,1795.6,45.12216]
[1743786647507,3.92819912,1795.9,1795.6,45.12216]
[1743786647712,1.1143,1795.8,1795.7,1.11426]
[1743786648113,1.1143,1795.8,1795.6,44.0078]
[1743786648114,1.1143,1795.7,1795.6,45.12212]
[1743786649524,1.1143,1795.8,1795.7,1.11425]
[1743786650426,1.1143,1795.8,1795.7,1.11426]
[1743786650624,1.1143,1795.7,1795.6,45.12211]
[1743786651622,1.1143,1795.7,1795.6,46.58401]
[1743786652125,1.1143,1795.7,1795.6,45.4697]
[1743786652619,4.6717,1795.8,1795.5,1.1106]
[1743786652824,1.11449,1795.4,1795.3,9.12e-06]
[1743786653027,5.37149,1795.4,1795.3,9.12e-06]
[1743786653519,7.87149,1795.4,1795.3,9.12e-06]
[1743786653720,12.67954338,1795.4,1795.3,9.12e-06]
[1743786654225,2.78649,1795.3,1794.8,8.6406373]
[1743786654529,1.11486,1794.8,1794.7,8.6406373]
[1743786655224,1.11486,1794.8,1794.7,49.4406373]
[1743786655427,2.57456,1794.8,1794.7,49.4406373]
[1743786655725,2.57456,1794.8,1794.6,13.0392192]
[1743786655726,3.9597,1794.8,1794.6,13.0392192]
[1743786656020,1.11517,1794.3,1794.2,24.6272084]
[1743786656229,5.37217,1794.3,1794.2,21.67396005]
[1743786656418,8.42977,1794.3,1794.2,21.67396005]
[1743786657128,8.42977,1794.3,1794.2,20.26667005]
[1743786657329,8.42977,1794.3,1794.2,19.15042005]
[1743786657627,1.11523,1794.2,1794.1,28.9290448]
[1743786657827,6.82303,1794.2,1794.1,27.6730848]
[1743786658036,6.82303,1794.2,1794.1,26.5426648]
[1743786658322,6.82303,1794.2,1794.1,12.49638373]
[1743786658733,6.82303,1794.2,1794.1,11.34558373]
[1743786659025,6.82303,1794.2,1794.1,8.62248373]
[1743786659227,6.82303,1794.2,1793.6,40.8]
[1743786659228,1.11554,1793.7,1793.6,40.8]
[1743786660025,4.26536284,1793.8,1793.6,41.91559]
[1743786660326,5.38089284,1793.8,1793.7,1.4599]
[1743786660521,1.12389284,1793.8,1793.7,1.4599]
[1743786660726,0.00836284,1793.8,1793.7,2.57544]
[1743786660926,1.12384284,1793.8,1793.7,1.4599]
[1743786661317,0.00836284,1793.8,1793.7,5.78324]
[1743786661724,6.52771398,1793.8,1793.7,5.78324]
[1743786662324,6.52771398,1793.8,1793.7,8.28324]
[1743786662521,7.64319398,1793.8,1793.7,5.78324]
[1743786662721,1.11561,1793.6,1793.5,3.2078]
[1743786664026,1.11579,1793.3,1793.2,1.4807]
[1743786664632,1.11602,1793.0,1792.9,1.4807]
[1743786664934,1.11602,1793.0,1792.4,3.2078]
[1743786664935,1.11629,1792.5,1792.4,3.2078]
[1743786665231,1.11629,1792.5,1792.4,40.8]
[1743786665431,2.79073,1792.5,1792.0,3.2078]
[1743786665631,1.11642,1792.3,1792.2,3.2078]
[1743786666433,1.11642,1792.3,1792.2,45.5232]
[1743786667840,1.11654,1792.1,1791.9,1.11664]
[1743786668132,2.79105,1792.3,1792.0,3.2078]
[1743786668341,1.11648,1792.2,1792.1,1.5154]
[1743786669242,1.11673,1791.8,1791.7,3.2078]
[1743786669441,1.11668,1791.9,1791.7,3.2078]
[1743786669743,1.11673,1791.8,1791.7,3.2078]
[1743786669940,7.05136,1792.1,1791.7,3.2078]
[1743786670138,1.11679,1791.7,1791.6,2.2696]
[1743786670441,1.11679,1791.7,1791.6,43.0696]
[1743786670632,1.11679,1791.7,1791.6,44.5581]
[1743786670938,1.11679,1791.7,1791.6,42.2885]
[1743786671335,5.37679,1791.7,1791.6,40.8]
[1743786671741,1.11691,1791.5,1791.4,1.4885]
[1743786672237,1.11691,1791.5,1791.4,42.2885]
[1743786672640,1.11691,1791.5,1791.4,1.4885]
[1743786673238,1.11691,1791.5,1791.4,42.2885]
[1743786673636,1.11691,1791.5,1791.4,1.4885]
[1743786673836,2.66106284,1791.6,1791.4,1.4885]
[1743786674036,1.11691,1791.5,1791.4,1.4885]
[1743786674234,0.00836284,1791.6,1791.4,4.6963]
[1743786674441,0.00836284,1791.6,1791.5,1.11691]
[1743786674640,0.00836284,1791.6,1791.5,42.2321]
[1743786675143,1.12521284,1791.6,1791.5,42.2321]
[1743786675340,1.12521284,1791.6,1791.5,1.4321]
[1743786675549,1.11704,1791.3,1791.2,1.0992]
[1743786676441,5.37801,1791.4,1791.2,4.307]
[1743786676646,1.11704,1791.3,1791.2,4.307]
[1743786676842,1.11704,1791.3,1791.2,5.812]
[1743786677442,5.37802,1791.4,1791.2,6.9291]
[1743786677643,4.261,1791.4,1791.3,1.11704]
[1743786677841,0.5584,1791.5,1791.2,5.812]
[1743786678145,1.12523284,1791.6,1791.4,4.32475]
[1743786678340,0.00836284,1791.6,1791.5,2.52301]
[1743786679241,0.00836284,1791.6,1791.5,5.02301]
[1743786679439,0.00836284,1791.6,1791.5,2.52301]
[1743786679638,0.00836284,1791.6,1791.5,5.02301]
[1743786679837,1.11669,1791.9,1791.7,1.11674]
[1743786680038,4.262,1792.1,1791.9,1.11665]
[1743786680039,1.11664,1792.0,1791.9,1.11665]
[1743786680343,1.1166,1792.1,1791.8,1.4061]
[1743786680544,1.11651,1792.2,1792.1,1.11653]
[1743786680740,7.4698,1792.4,1792.1,1.11653]
[1743786680937,1.12478284,1792.3,1792.2,1.5406]
[1743786681637,0.00836284,1792.3,1792.2,5.86488]
[1743786681849,1.12478284,1792.3,1792.2,1.5406]
[1743786684546,1.11654,1792.1,1792.0,0.00836284]
[1743786684941,6.82434,1792.1,1792.0,0.00836284]
[1743786685243,6.82434,1792.1,1791.3,1.081]
[1743786685244,1.11698,1791.4,1791.3,1.081]
[1743786685852,2.79231,1791.5,1791.1,1.088]
[1743786686251,7.61157,1791.6,1791.1,1.088]
[1743786686552,1.11694,1791.5,1791.4,1.11691]
[1743786686849,1.11693,1791.5,1791.4,1.11694]
[1743786687553,41.1685,1791.9,1791.4,3.2078]
[1743786687754,1.11688,1791.6,1791.5,2.59217]
[1743786688352,1.11688,1791.6,1791.5,1.4753]
[1743786690648,1.11704,1791.3,1791.2,3.2078]
[1743786691247,1.11704,1791.3,1791.2,4.3249]
[1743786691447,1.11704,1791.3,1791.2,3.2078]
[1743786691957,1.11704,1791.3,1791.2,4.7305]
[1743786692157,1.11704,1791.3,1791.2,1.5227]
[1743786693953,7.87804,1791.3,1791.2,1.5227]
[1743786694261,1.11723,1791.0,1790.9,1.4616]
[1743786695162,1.11723,1791.0,1790.9,2.57889]
[1743786695662,0.00836284,1791.1,1790.9,2.57889]
[1743786695663,1.12558284,1791.1,1791.0,1.11723]
[1743786696157,1.11723,1791.0,1790.9,2.57883]
[1743786697855,1.12558284,1791.1,1791.0,1.11723]
[1743786699248,0.00836284,1791.1,1791.0,4.32503]
[1743786699454,1.12552284,1791.1,1791.0,4.32503]
[1743786700450,1.12552284,1791.1,1791.0,3.2078]
[1743786700656,1.12552284,1791.1,1791.0,4.32503]
[1743786702762,1.12552284,1791.1,1791.0,3.2078]
[1743786702956,1.12552284,1791.1,1791.0,4.32503]
[1743786703160,0.00836284,1791.1,1791.0,5.84783]
[1743786703559,1.12552284,1791.1,1791.0,5.84783]
[1743786704959,0.00836284,1791.1,1791.0,8.34783]
[1743786705260,1.11699,1791.5,1791.4,1.11694]
[1743786705561,0.5584,1791.6,1791.1,4.2899]
[1743786705763,1.11698,1791.4,1791.3,1.4466]
[1743786705965,1.1171,1791.2,1791.1,1.11716]
[1743786706157,2.79277,1791.2,1790.9,4.6544]
[1743786706358,1.11721,1791.1,1791.0,1.11715]
[1743786706657,4.25595,1791.3,1791.0,1.11715]
[1743786706658,2.80069284,1791.5,1791.0,4.23952]
[1743786706857,1.11705,1791.4,1791.3,1.117]
[1743786707364,1.12532284,1791.5,1791.4,1.11698]
[1743786707552,0.00836284,1791.5,1791.4,2.56358]
[1743786709063,0.00836284,1791.5,1791.4,43.36358]
[1743786709965,1.12527284,1791.5,1791.4,43.36358]
[1743786710170,0.00836284,1791.5,1791.4,43.36358]
[1743786712053,43.36346114,1791.9,1791.8,1.11673]
[1743786712259,7.63606114,1791.9,1791.8,1.11673]
[1743786712761,1.11673,1791.8,1791.7,2.64833]
[1743786712961,9.11326114,1791.9,1791.8,1.11673]
[1743786713265,1.11673,1791.8,1791.7,1.5316]
[1743786713467,2.59393,1791.8,1791.7,1.5316]
[1743786713767,2.59393,1791.8,1791.7,2.64839]
[1743786714167,2.59393,1791.8,1791.7,1.5316]
[1743786714566,2.59393,1791.8,1791.7,2.64839]
[1743786716257,2.59393,1791.8,1791.7,1.5316]
[1743786716463,1.11679,1791.7,1791.6,4.32465]
[1743786718262,1.11676,1791.8,1791.7,1.11679]
[1743786718463,12.54070523,1791.9,1791.8,1.11673]
[1743786718665,1.11672,1791.9,1791.8,1.11673]
[1743786719170,1.1167,1791.9,1791.8,1.11666]
[1743786719366,0.00836284,1792.0,1791.8,1.11666]
[1743786719671,0.00836284,1792.0,1791.9,2.65796]
[1743786719875,0.00836284,1792.0,1791.9,3.73376]
[1743786720772,0.00836284,1792.0,1791.9,7.99076]
[1743786720968,13.03870228,1792.1,1792.0,1.1166]
[1743786721167,11.27650228,1792.1,1792.0,5.8294]
[1743786721462,11.27650228,1792.1,1792.0,8.3294]
[1743786721968,8.71829228,1792.1,1792.0,8.3294]
[1743786722171,4.32501797,1792.3,1792.2,1.11648]
[1743786722368,4.32501797,1792.3,1792.2,8.58128]
[1743786722569,4.32501797,1792.3,1792.2,11.08128]
[1743786722968,4.32501797,1792.3,1792.2,8.58128]
[1743786724274,3.16192797,1792.3,1792.2,11.08128]
[1743786724468,3.16192797,1792.3,1792.2,8.58128]
[1743786724666,3.16192797,1792.3,1792.2,4.32428]
[1743786725164,4.27834797,1792.3,1792.2,3.2078]
[1743786725364,5.75804797,1792.3,1792.2,3.2078]
[1743786725564,2.59612,1792.3,1792.2,3.2078]
[1743786725969,2.59612,1792.3,1792.2,1.11648]
[1743786726172,0.00836284,1792.4,1792.3,1.11642]
[1743786726571,1.11642,1792.3,1792.2,4.32423]
[1743786726970,1.11642,1792.3,1792.2,4.32428]
[1743786727171,1.1166,1792.0,1791.9,0.00836284]
[1743786727967,2.5668,1792.0,1791.9,1.12502284]
[1743786728168,1.1166,1792.0,1791.9,1.12502284]
[1743786728368,1.4502,1792.0,1791.9,1.12502284]
[1743786728570,5.37159,1792.1,1792.0,1.1166]
[1743786728770,2.56679,1792.1,1792.0,1.1166]
[1743786728977,1.1166,1792.0,1791.9,4.33277284]
[1743786729281,1.1166,1792.0,1791.9,0.00836284]
[1743786730171,1.11659,1792.1,1792.0,1.1166]
[1743786730377,11.35328076,1792.3,1792.2,1.11648]
[1743786730573,8.72881076,1792.3,1792.2,1.11648]
[1743786730776,8.72881076,1792.3,1792.2,3.61648]
[1743786731077,0.00836284,1792.4,1792.2,1.11643]
[1743786731275,0.00836284,1792.4,1792.3,4.32422]
[1743786732179,0.00836284,1792.4,1792.3,45.12422]
[1743786732675,0.00836284,1792.4,1792.3,47.62422]
[1743786732876,0.00836284,1792.4,1792.3,45.12422]
[1743786734177,0.00836284,1792.4,1792.3,49.37822]
[1743786735478,2.84e-06,1792.4,1792.3,51.87822]
[1743786736674,2.84e-06,1792.4,1792.3,45.12422]
[1743786736872,2.84e-06,1792.4,1792.3,4.32422]
[1743786737181,1.11635284,1792.4,1792.0,8.23518]
[1743786737377,2.84e-06,1792.4,1792.3,1.11642]
[1743786737880,1.11635284,1792.4,1792.3,1.11642]
[1743786738076,1.48230284,1792.4,1792.3,1.11642]
[1743786738277,2.84e-06,1792.4,1792.3,1.11642]
[1743786739275,1.11635284,1792.4,1792.3,1.11642]
[1743786740669,1.11641284,1792.4,1792.3,1.11642]
[1743786741579,1.11641284,1792.4,1792.3,2.53022]
[1743786743776,2.59321284,1792.4,1792.3,2.53022]
[1743786746381,2.84e-06,1792.4,1792.3,2.53022]
[1743786747677,1.11635284,1792.4,1792.3,2.53022]
[1743786748178,2.84e-06,1792.4,1792.3,2.53022]
[1743786749180,8.71688144,1792.5,1792.3,3.9138]
[1743786749181,7.53995428,1792.5,1792.3,3.9138]
[1743786749374,1.24519428,1792.5,1792.4,4.32415]
[1743786749574,10.89610181,1792.6,1792.5,1.11629]
[1743786749893,8.32557181,1792.6,1792.5,6.47769]
[1743786750187,6.76805181,1792.6,1792.5,8.97769]
[1743786750374,6.76805181,1792.6,1792.5,6.47769]
[1743786750776,1.12457284,1792.7,1792.6,1.11623]
[1743786750977,2.53833284,1792.7,1792.6,4.32403]
[1743786751181,1.11623,1792.6,1792.5,2.22665]
[1743786751678,1.42216284,1792.7,1792.6,1.11623]
[1743786751983,0.00836284,1792.7,1792.6,4.32403]
[1743786752785,0.00836284,1792.7,1792.6,5.84353]
[1743786753581,0.00836284,1792.7,1792.3,3.2078]
[1743786753778,1.11633,1792.5,1792.4,1.11632]
[1743786753976,3.71649,1792.6,1792.5,1.11629]
[1743786754482,1.11635,1792.4,1792.3,4.32416]
[1743786754683,1.11634,1792.5,1792.4,1.11633]
[1743786754987,2.65162,1792.5,1792.4,1.11635]
[1743786755177,1.11635,1792.4,1792.3,4.32417]
[1743786755378,2.65165,1792.4,1792.3,4.32417]
[1743786755780,2.65165,1792.4,1792.3,3.2078]
[1743786756874,2.65165,1792.4,1792.3,4.32422]
[1743786757082,2.65165,1792.4,1792.3,3.2078]
[1743786757682,2.65165,1792.4,1792.3,4.32422]
[1743786758291,1.5353,1792.4,1792.3,4.32422]
[1743786758993,0.5584,1792.6,1792.3,14.6538]
[1743786759190,15.26399518,1793.6,1793.4,1.11573]
[1743786759682,16.37962518,1793.6,1793.4,41.91573]
[1743786759888,16.37962518,1793.6,1793.4,43.42183]
[1743786760088,15.26399518,1793.6,1793.4,43.42183]
[1743786760390,15.27235802,1793.6,1793.4,43.42183]
[1743786760586,14.17234908,1793.5,1793.4,42.3061]
[1743786760786,15.62124908,1793.5,1793.4,40.8]
[1743786761593,18.82904908,1793.5,1793.4,40.8]
[1743786761789,1.11573,1793.4,1793.3,0.00836284]
[1743786761994,3.62253,1793.4,1793.3,0.00836284]
[1743786762288,6.12253,1793.4,1793.3,0.00836284]
[1743786762996,3.62253,1793.4,1793.3,0.00836284]
[1743786763195,10.36953,1793.4,1793.3,2.84e-06]
[1743786763492,1.11623,1792.6,1792.5,3.2078]
[1743786763692,2.79031,1792.8,1792.3,1.4632]
[1743786763889,1.4171,1792.5,1792.4,4.32415]
[1743786764192,1.4171,1792.5,1792.4,1.11635]
[1743786764397,1.11626,1792.6,1792.4,1.11635]
[1743786764579,1.12462284,1792.6,1792.5,1.4632]
[1743786765386,0.00836284,1792.6,1792.5,5.78729]
[1743786765791,2.84e-06,1792.6,1792.5,8.28729]
[1743786765989,3.11204,1793.3,1793.1,1.11587]
[1743786765990,1.11586,1793.2,1793.1,1.11587]
[1743786766186,1.11586,1793.2,1793.1,4.32367]
[1743786766392,1.4171,1793.3,1793.2,1.11586]
[1743786766688,1.11577,1793.4,1793.3,1.11579]
[1743786766882,1.4028,1793.5,1793.3,1.11579]
[1743786767084,2.52687284,1793.5,1793.4,1.4569]
[1743786768393,1.11579,1793.3,1793.2,0.00836284]
[1743786768588,8.56959,1793.3,1793.2,0.00836284]
[1743786768895,5.36179,1793.3,1793.2,0.00836284]
[1743786769496,7.86179,1793.3,1793.2,0.00836284]
[1743786769897,1.11604,1792.9,1792.8,3.2078]
[1743786770091,1.1161,1792.8,1792.7,1.5276]
[1743786770293,2.5283,1792.8,1792.7,1.5276]
[1743786770590,4.20247,1792.8,1792.4,5.26202]
[1743786770791,1.11628,1792.6,1792.5,2.28025629]
[1743786771297,1.11623,1792.6,1792.5,2.28025629]
[1743786771591,1.11623,1792.6,1792.5,3.39650629]
[1743786771897,12.03533295,1792.6,1792.5,3.39650629]
[1743786772298,10.91910295,1792.6,1792.5,3.39650629]
[1743786772797,12.03533295,1792.6,1792.5,3.39650629]
[1743786773089,10.91910295,1792.6,1792.5,3.39650629]
[1743786773895,12.03531295,1792.7,1792.5,3.39650629]
[1743786774095,12.03531295,1792.7,1792.6,0.75265629]
[1743786774295,10.91910295,1792.7,1792.6,1.86913652]
[1743786774497,12.03530295,1792.7,1792.6,1.86913652]
[1743786774795,12.03530295,1792.7,1792.6,5.07693652]
[1743786774985,12.03530295,1792.7,1792.6,1.86913652]
[1743786775899,12.03530295,1792.7,1792.6,5.07693652]
[1743786776200,10.91910295,1792.7,1792.6,5.07693652]
[1743786777097,10.91910295,1792.7,1792.6,5.07743138]
[1743786777491,10.91910295,1792.7,1792.6,8.51293138]
[1743786778693,10.91910295,1792.7,1792.6,8.51249378]
[1743786778900,10.91910295,1792.9,1792.8,1.1161]
[1743786779095,10.91910295,1792.9,1792.8,5.07686378]
[1743786779492,12.03514295,1792.9,1792.8,3.96076378]
[1743786779692,12.03514295,1792.9,1792.8,0.75296378]
[1743786779892,1.1161,1792.8,1792.7,1.4444]
[1743786780090,2.5151,1792.8,1792.7,2.19764622]
[1743786780296,2.5151,1792.8,1792.7,1.4444]
[1743786780500,2.5151,1792.8,1792.7,2.56057]
[1743786780689,1.399,1792.8,1792.7,3.31374749]
[1743786781094,10.91910295,1792.9,1792.8,1.1161]
[1743786781295,12.03514295,1792.9,1792.8,1.86872265]
[1743786781495,12.03514295,1792.9,1792.8,5.07652265]
[1743786781703,15.65261908,1793.1,1793.0,1.11598]
[1743786781893,15.65261908,1793.1,1793.0,5.0762435]
[1743786782095,14.53667908,1793.1,1793.0,5.0762435]
[1743786782401,13.05667908,1793.1,1793.0,5.0762435]
[1743786782599,13.05667908,1793.1,1793.0,6.0417435]
[1743786782793,14.17259908,1793.1,1793.0,2.1840635]
[1743786782989,15.65259908,1793.1,1793.0,44.1000435]
[1743786783194,15.65259908,1793.1,1793.0,43.34758]
[1743786783395,13.05667908,1793.1,1793.0,47.30792625]
[1743786783699,13.05667908,1793.1,1793.0,48.31406166]
[1743786784094,14.17259908,1793.1,1793.0,44.76008166]
[1743786784401,2.59592,1793.1,1793.0,40.8]
[1743786784706,2.59592,1793.1,1793.0,42.66861979]